[Event "Titled Tuesday Blitz November 22 Late 2022"]
[White "Gascon Del Nogal, Jose Rafael"]
[Black "Koutlas, Nikolaos"]
[WhiteFideId "3902463"]
[BlackFideId "25827138"]
[WhiteElo "2473"]
[BlackElo "2167"]
[Result "1/2-1/2"]
[Round "10"]
[TimeControl "180+1"]
[Date "2022.11.23"]
[WhiteClock "0:00:05"]
[BlackClock "0:00:02"]

1. d4 {[%clk 0:03:00]}  Nf6 {[%clk 0:02:59]} 2. c4 {[%clk 0:03:00]}  g6 {[%clk 0:03:00]} 3. Nc3 {[%clk 0:02:59]}  Bg7 {[%clk 0:03:01]} 4. e4 {[%clk 0:02:59]}  d6 {[%clk 0:03:01]} 5. Nf3 {[%clk 0:02:53]}  O-O {[%clk 0:03:00]} 6. Be3 {[%clk 0:02:53]}  Ng4 {[%clk 0:02:52]} 7. Bg5 {[%clk 0:02:50]}  c5 {[%clk 0:02:51]} 8. dxc5 {[%clk 0:02:46]}  Qa5 {[%clk 0:02:41]} 9. Qd2 {[%clk 0:02:43]}  Qxc5 {[%clk 0:02:36]} 10. Bxe7 {[%clk 0:02:43]}  Re8 {[%clk 0:02:28]} 11. Bxd6 {[%clk 0:02:34]}  Bxc3 {[%clk 0:02:00]} 12. Bxc5 {[%clk 0:02:33]}  Bxd2+ {[%clk 0:02:00]} 13. Nxd2 {[%clk 0:02:32]}  Nc6 {[%clk 0:01:55]} 14. f3 {[%clk 0:02:29]}  b6 {[%clk 0:01:53]} 15. Bg1 {[%clk 0:02:20]}  Nge5 {[%clk 0:01:51]} 16. a3 {[%clk 0:02:08]}  f5 {[%clk 0:01:49]} 17. Be2 {[%clk 0:02:04]}  fxe4 {[%clk 0:01:44]} 18. Nxe4 {[%clk 0:02:05]}  Bf5 {[%clk 0:01:43]} 19. Nf6+ {[%clk 0:02:04]}  Kf7 {[%clk 0:01:42]} 20. Nxe8 {[%clk 0:02:04]}  Rxe8 {[%clk 0:01:43]} 21. Kf1 {[%clk 0:01:42]}  Nd3 {[%clk 0:01:33]} 22. g4 {[%clk 0:01:30]}  Nf4 {[%clk 0:01:29]} 23. gxf5 {[%clk 0:01:30]}  Rxe2 {[%clk 0:01:27]} 24. fxg6+ {[%clk 0:01:29]}  hxg6 {[%clk 0:01:27]} 25. b4 {[%clk 0:01:10]}  Ne5 {[%clk 0:01:23]} 26. Re1 {[%clk 0:01:09]}  Rxe1+ {[%clk 0:01:10]} 27. Kxe1 {[%clk 0:01:08]}  Nxc4 {[%clk 0:00:58]} 28. Bd4 {[%clk 0:00:52]}  Nxa3 {[%clk 0:00:56]} 29. Kf2 {[%clk 0:00:51]}  Nc2 {[%clk 0:00:52]} 30. Bc3 {[%clk 0:00:43]}  Nd5 {[%clk 0:00:46]} 31. Rc1 {[%clk 0:00:33]}  Nce3 {[%clk 0:00:31]} 32. Bd2 {[%clk 0:00:29]}  Nf5 {[%clk 0:00:30]} 33. Ra1 {[%clk 0:00:26]}  Ke6 {[%clk 0:00:25]} 34. Rxa7 {[%clk 0:00:25]}  Nd6 {[%clk 0:00:25]} 35. Ra8 {[%clk 0:00:19]}  Nc4 {[%clk 0:00:23]} 36. Be1 {[%clk 0:00:19]}  Ne5 {[%clk 0:00:23]} 37. Re8+ {[%clk 0:00:17]}  Kf5 {[%clk 0:00:22]} 38. Rf8+ {[%clk 0:00:17]}  Ke6 {[%clk 0:00:22]} 39. Ke2 {[%clk 0:00:15]}  g5 {[%clk 0:00:19]} 40. Bd2 {[%clk 0:00:14]}  Ng6 {[%clk 0:00:13]} 41. Rg8 {[%clk 0:00:13]}  Kf5 {[%clk 0:00:13]} 42. Rd8 {[%clk 0:00:08]}  Nge7 {[%clk 0:00:09]} 43. Rd6 {[%clk 0:00:08]}  Ke5 {[%clk 0:00:08]} 44. Rd7 {[%clk 0:00:07]}  Ke6 {[%clk 0:00:08]} 45. Rb7 {[%clk 0:00:06]}  Kf5 {[%clk 0:00:07]} 46. b5 {[%clk 0:00:04]}  Ng6 {[%clk 0:00:07]} 47. Be3 {[%clk 0:00:02]}  Nc3+ {[%clk 0:00:04]} 48. Kd3 {[%clk 0:00:02]}  Nxb5 {[%clk 0:00:04]} 49. Rxb6 {[%clk 0:00:03]}  Nc7 {[%clk 0:00:04]} 50. Rb5+ {[%clk 0:00:03]}  Nxb5 {[%clk 0:00:03]} 51. Bxg5 {[%clk 0:00:02]}  Kxg5 {[%clk 0:00:03]} 52. h4+ {[%clk 0:00:03]}  Kxh4 {[%clk 0:00:03]} 53. f4 {[%clk 0:00:04]}  Nd6 {[%clk 0:00:02]} 54. f5 {[%clk 0:00:05]}  Nxf5 {[%clk 0:00:02]} 1/2-1/2


[Site "https://www.chess.com"]

[Event "Titled Tuesday Blitz November 22 Late 2022"]
[White "Goltsev, Dmitry"]
[Black "Rosen, Eric"]
[WhiteFideId "24176710"]
[BlackFideId "2032562"]
[WhiteElo "2289"]
[BlackElo "2362"]
[Result "0-1"]
[Round "10"]
[TimeControl "180+1"]
[Date "2022.11.22"]
[WhiteClock "0:00:17"]
[BlackClock "0:00:03"]

1. e4 {[%clk 0:02:59]}  c5 {[%clk 0:02:58]} 2. Nf3 {[%clk 0:03:00]}  d6 {[%clk 0:02:59]} 3. d4 {[%clk 0:02:59]}  Nf6 {[%clk 0:02:58]} 4. Nc3 {[%clk 0:02:59]}  cxd4 {[%clk 0:02:59]} 5. Nxd4 {[%clk 0:03:00]}  g6 {[%clk 0:02:59]} 6. Be2 {[%clk 0:03:00]}  Bg7 {[%clk 0:02:59]} 7. Be3 {[%clk 0:03:00]}  O-O {[%clk 0:03:00]} 8. O-O {[%clk 0:03:00]}  Nc6 {[%clk 0:02:57]} 9. f4 {[%clk 0:02:59]}  Qb6 {[%clk 0:02:43]} 10. Na4 {[%clk 0:02:54]}  Qb4 {[%clk 0:02:31]} 11. c3 {[%clk 0:02:50]}  Qa5 {[%clk 0:02:30]} 12. b4 {[%clk 0:02:48]}  Qc7 {[%clk 0:02:18]} 13. Bf3 {[%clk 0:02:47]}  Bd7 {[%clk 0:01:54]} 14. Rc1 {[%clk 0:02:45]}  Rac8 {[%clk 0:01:45]} 15. a3 {[%clk 0:02:40]}  a6 {[%clk 0:01:28]} 16. c4 {[%clk 0:02:29]}  Nxd4 {[%clk 0:01:23]} 17. Bxd4 {[%clk 0:02:30]}  Bc6 {[%clk 0:01:13]} 18. Nb6 {[%clk 0:02:28]}  Rcd8 {[%clk 0:01:12]} 19. Re1 {[%clk 0:02:27]}  e5 {[%clk 0:01:08]} 20. Bf2 {[%clk 0:02:25]}  exf4 {[%clk 0:01:06]} 21. Nd5 {[%clk 0:02:25]}  Bxd5 {[%clk 0:00:59]} 22. cxd5 {[%clk 0:02:26]}  Qe7 {[%clk 0:00:55]} 23. Qd2 {[%clk 0:02:24]}  g5 {[%clk 0:00:53]} 24. e5 {[%clk 0:02:22]}  dxe5 {[%clk 0:00:46]} 25. Bc5 {[%clk 0:02:20]}  Rd6 {[%clk 0:00:40]} 26. Bxd6 {[%clk 0:02:12]}  Qxd6 {[%clk 0:00:40]} 27. Be4 {[%clk 0:02:09]}  Nxe4 {[%clk 0:00:36]} 28. Rxe4 {[%clk 0:02:10]}  f5 {[%clk 0:00:37]} 29. Rec4 {[%clk 0:02:08]}  e4 {[%clk 0:00:33]} 30. Rc8 {[%clk 0:02:07]}  g4 {[%clk 0:00:22]} 31. Rxf8+ {[%clk 0:02:03]}  Bxf8 {[%clk 0:00:22]} 32. Qd4 {[%clk 0:02:01]}  f3 {[%clk 0:00:19]} 33. Rc8 {[%clk 0:01:58]}  Qf4 {[%clk 0:00:10]} 34. d6 {[%clk 0:01:47]}  fxg2 {[%clk 0:00:11]} 35. Kxg2 {[%clk 0:01:48]}  Qf3+ {[%clk 0:00:10]} 36. Kg1 {[%clk 0:01:49]}  e3 {[%clk 0:00:09]} 37. Qc4+ {[%clk 0:01:39]}  Kg7 {[%clk 0:00:09]} 38. Rc7+ {[%clk 0:01:21]}  Kh6 {[%clk 0:00:09]} 39. Qf1 {[%clk 0:00:34]}  Bxd6 {[%clk 0:00:04]} 40. Qxf3 {[%clk 0:00:26]}  gxf3 {[%clk 0:00:04]} 41. Rxb7 {[%clk 0:00:25]}  Bxh2+ {[%clk 0:00:04]} 42. Kxh2 {[%clk 0:00:22]}  e2 {[%clk 0:00:02]} 43. Re7 {[%clk 0:00:21]}  f2 {[%clk 0:00:03]} 44. Rxe2 {[%clk 0:00:17]}  f1=Q {[%clk 0:00:03]} 45. Rg2 {[%clk 0:00:17]}  Qf4+ {[%clk 0:00:03]} 46. Kh3 {[%clk 0:00:17]}  Qf3+ {[%clk 0:00:03]} 47. Rg3 {[%clk 0:00:17]}  Qh1# {[%clk 0:00:03]} 0-1


[Site "https://www.chess.com"]

[Event "Titled Tuesday Blitz November 22 Late 2022"]
[White "Gritsenko, Nikolai"]
[Black "Baskakov, Egor"]
[WhiteFideId "14112493"]
[BlackFideId "24197866"]
[WhiteElo "2389"]
[BlackElo "2211"]
[Result "1/2-1/2"]
[Round "10"]
[TimeControl "180+1"]
[Date "2022.11.22"]
[WhiteClock "0:00:43"]
[BlackClock "0:01:49"]

1. b3 {[%clk 0:03:00]}  Nf6 {[%clk 0:02:59]} 2. Bb2 {[%clk 0:03:01]}  e6 {[%clk 0:03:00]} 3. c4 {[%clk 0:03:00]}  Be7 {[%clk 0:03:00]} 4. Nf3 {[%clk 0:03:00]}  O-O {[%clk 0:03:00]} 5. e3 {[%clk 0:03:00]}  d5 {[%clk 0:03:01]} 6. Be2 {[%clk 0:03:00]}  c5 {[%clk 0:03:00]} 7. O-O {[%clk 0:02:53]}  Nc6 {[%clk 0:03:01]} 8. cxd5 {[%clk 0:02:53]}  Nxd5 {[%clk 0:03:02]} 9. a3 {[%clk 0:02:52]}  Bf6 {[%clk 0:03:02]} 10. Qc1 {[%clk 0:02:51]}  b6 {[%clk 0:03:01]} 11. Nc3 {[%clk 0:02:45]}  Bb7 {[%clk 0:02:59]} 12. Rd1 {[%clk 0:02:40]}  Rc8 {[%clk 0:02:58]} 13. Ne4 {[%clk 0:02:33]}  Bxb2 {[%clk 0:02:57]} 14. Qxb2 {[%clk 0:02:33]}  e5 {[%clk 0:02:48]} 15. Bc4 {[%clk 0:02:01]}  Re8 {[%clk 0:02:39]} 16. Qc2 {[%clk 0:01:44]}  Na5 {[%clk 0:02:18]} 17. Neg5 {[%clk 0:01:28]}  g6 {[%clk 0:02:15]} 18. Bb5 {[%clk 0:01:14]}  Re7 {[%clk 0:02:11]} 19. Be2 {[%clk 0:00:55]}  h6 {[%clk 0:02:03]} 20. Ne4 {[%clk 0:00:53]}  Nc6 {[%clk 0:02:03]} 21. d3 {[%clk 0:00:50]}  Rd7 {[%clk 0:02:01]} 22. Qb2 {[%clk 0:00:49]}  Qe7 {[%clk 0:01:59]} 23. Rac1 {[%clk 0:00:46]}  Rcd8 {[%clk 0:01:54]} 24. h3 {[%clk 0:00:45]}  a5 {[%clk 0:01:49]} 25. Ned2 {[%clk 0:00:43]} 1/2-1/2


[Site "https://www.chess.com"]

[Event "Titled Tuesday Blitz November 22 Late 2022"]
[White "Hardaway, Brewington"]
[Black "Goryachkina, Aleksandra"]
[WhiteFideId "30941849"]
[BlackFideId "4147103"]
[WhiteElo "2159"]
[BlackElo "2484"]
[Result "1-0"]
[Round "10"]
[TimeControl "180+1"]
[Date "2022.11.22"]
[WhiteClock "0:01:02"]
[BlackClock "0:00:01"]

1. e4 {[%clk 0:02:59]}  e6 {[%clk 0:03:00]} 2. d4 {[%clk 0:02:57]}  d5 {[%clk 0:03:00]} 3. Nc3 {[%clk 0:02:58]}  Bb4 {[%clk 0:03:00]} 4. e5 {[%clk 0:02:57]}  c5 {[%clk 0:03:00]} 5. a3 {[%clk 0:02:54]}  Bxc3+ {[%clk 0:03:00]} 6. bxc3 {[%clk 0:02:54]}  Ne7 {[%clk 0:03:00]} 7. Qg4 {[%clk 0:02:53]}  Qc7 {[%clk 0:02:58]} 8. Bd3 {[%clk 0:02:47]}  cxd4 {[%clk 0:02:53]} 9. Ne2 {[%clk 0:02:44]}  b6 {[%clk 0:02:47]} 10. cxd4 {[%clk 0:02:44]}  Ba6 {[%clk 0:02:40]} 11. Qxg7 {[%clk 0:02:39]}  Rg8 {[%clk 0:02:40]} 12. Qxh7 {[%clk 0:02:35]}  Rxg2 {[%clk 0:02:05]} 13. Bxa6 {[%clk 0:02:28]}  Nxa6 {[%clk 0:02:05]} 14. Qd3 {[%clk 0:02:28]}  Nb8 {[%clk 0:00:50]} 15. Ng3 {[%clk 0:02:27]}  Nbc6 {[%clk 0:00:48]} 16. Kf1 {[%clk 0:02:26]}  Rxg3 {[%clk 0:00:42]} 17. hxg3 {[%clk 0:02:27]}  O-O-O {[%clk 0:00:39]} 18. Bg5 {[%clk 0:02:25]}  Rg8 {[%clk 0:00:32]} 19. Bxe7 {[%clk 0:02:22]}  Nxe7 {[%clk 0:00:32]} 20. a4 {[%clk 0:02:05]}  Nc6 {[%clk 0:00:29]} 21. c3 {[%clk 0:01:55]}  Na5 {[%clk 0:00:27]} 22. Kg2 {[%clk 0:01:35]}  Kb8 {[%clk 0:00:26]} 23. Rh7 {[%clk 0:01:27]}  Rd8 {[%clk 0:00:24]} 24. Rah1 {[%clk 0:01:24]}  Kb7 {[%clk 0:00:19]} 25. Rh8 {[%clk 0:01:22]}  Rd7 {[%clk 0:00:16]} 26. R1h7 {[%clk 0:01:21]}  Qc6 {[%clk 0:00:15]} 27. Qf3 {[%clk 0:01:19]}  Qxa4 {[%clk 0:00:08]} 28. Rxf7 {[%clk 0:01:19]}  Ka6 {[%clk 0:00:08]} 29. Rhh7 {[%clk 0:01:18]}  Rxf7 {[%clk 0:00:05]} 30. Qxf7 {[%clk 0:01:19]}  Qc6 {[%clk 0:00:02]} 31. Qxa7+ {[%clk 0:01:18]}  Kb5 {[%clk 0:00:02]} 32. Qd7 {[%clk 0:01:18]}  Qxd7 {[%clk 0:00:01]} 33. Rxd7 {[%clk 0:01:19]}  Kc4 {[%clk 0:00:01]} 34. Rd6 {[%clk 0:01:19]}  Kxc3 {[%clk 0:00:01]} 35. Rxb6 {[%clk 0:01:20]}  Kxd4 {[%clk 0:00:01]} 36. Rxe6 {[%clk 0:01:21]}  Nc4 {[%clk 0:00:02]} 37. f4 {[%clk 0:01:21]}  Ke4 {[%clk 0:00:01]} 38. Re8 {[%clk 0:01:21]}  d4 {[%clk 0:00:01]} 39. Rd8 {[%clk 0:01:18]}  d3 {[%clk 0:00:01]} 40. e6 {[%clk 0:01:17]}  Ne3+ {[%clk 0:00:02]} 41. Kh3 {[%clk 0:01:16]}  Nf5 {[%clk 0:00:01]} 42. g4 {[%clk 0:01:13]}  Ne7 {[%clk 0:00:01]} 43. f5 {[%clk 0:01:06]}  Nc6 {[%clk 0:00:01]} 44. Rd6 {[%clk 0:01:02]} 1-0


[Site "https://www.chess.com"]

[Event "Titled Tuesday Blitz November 22 Late 2022"]
[White "Ibarra Jerez, Jose Carlos"]
[Black "Deac, Bogdan-Daniel"]
[WhiteFideId "2226332"]
[BlackFideId "1226380"]
[WhiteElo "2638"]
[BlackElo "2648"]
[Result "0-1"]
[Round "10"]
[TimeControl "180+1"]
[Date "2022.11.22"]
[WhiteClock "0:00:22"]
[BlackClock "0:00:43"]

1. a3 {[%clk 0:03:00]}  e5 {[%clk 0:02:59]} 2. c4 {[%clk 0:03:00]}  Nf6 {[%clk 0:02:58]} 3. e3 {[%clk 0:02:59]}  g6 {[%clk 0:02:56]} 4. b4 {[%clk 0:02:59]}  Bg7 {[%clk 0:02:53]} 5. Bb2 {[%clk 0:03:00]}  d6 {[%clk 0:02:53]} 6. d3 {[%clk 0:03:00]}  O-O {[%clk 0:02:53]} 7. Nf3 {[%clk 0:03:01]}  b6 {[%clk 0:02:53]} 8. Nbd2 {[%clk 0:03:01]}  c5 {[%clk 0:02:53]} 9. Be2 {[%clk 0:02:59]}  Re8 {[%clk 0:02:47]} 10. O-O {[%clk 0:02:43]}  Bb7 {[%clk 0:02:43]} 11. Qc2 {[%clk 0:02:43]}  Nbd7 {[%clk 0:02:42]} 12. Rfe1 {[%clk 0:02:43]}  h6 {[%clk 0:02:39]} 13. Ne4 {[%clk 0:02:41]}  Qe7 {[%clk 0:02:33]} 14. Rad1 {[%clk 0:02:38]}  Nh7 {[%clk 0:02:30]} 15. Nc3 {[%clk 0:02:38]}  f5 {[%clk 0:02:29]} 16. Nd5 {[%clk 0:02:36]}  Bxd5 {[%clk 0:02:26]} 17. cxd5 {[%clk 0:02:36]}  e4 {[%clk 0:02:08]} 18. dxe4 {[%clk 0:02:35]}  fxe4 {[%clk 0:02:08]} 19. Nd2 {[%clk 0:02:32]}  Bxb2 {[%clk 0:02:08]} 20. Qxb2 {[%clk 0:02:32]}  Rf8 {[%clk 0:02:08]} 21. Bg4 {[%clk 0:02:30]}  Ng5 {[%clk 0:01:44]} 22. h4 {[%clk 0:02:24]}  Ne5 {[%clk 0:01:14]} 23. Be2 {[%clk 0:02:24]}  Ngf3+ {[%clk 0:01:12]} 24. gxf3 {[%clk 0:02:16]}  exf3 {[%clk 0:01:12]} 25. Nxf3 {[%clk 0:02:03]}  Nxf3+ {[%clk 0:01:11]} 26. Bxf3 {[%clk 0:02:03]}  Rxf3 {[%clk 0:01:11]} 27. bxc5 {[%clk 0:02:03]}  bxc5 {[%clk 0:01:06]} 28. Qc2 {[%clk 0:01:51]}  Qxh4 {[%clk 0:00:56]} 29. Rd2 {[%clk 0:01:17]}  Qg4+ {[%clk 0:00:46]} 30. Kf1 {[%clk 0:01:17]}  Rh3 {[%clk 0:00:45]} 31. Qe4 {[%clk 0:00:22]}  Qxe4 {[%clk 0:00:43]} 0-1


[Site "https://www.chess.com"]

[Event "Titled Tuesday Blitz November 22 Late 2022"]
[White "Janaszak, Dawid"]
[Black "Tanenbaum, Zachary"]
[WhiteFideId "1119206"]
[BlackFideId "2060850"]
[WhiteElo "2226"]
[BlackElo "2175"]
[Result "0-1"]
[Round "10"]
[TimeControl "180+1"]
[Date "2022.11.23"]
[WhiteClock "0:00:01"]
[BlackClock "0:00:11"]

1. e4 {[%clk 0:02:53]}  e5 {[%clk 0:02:59]} 2. Nf3 {[%clk 0:02:52]}  Nc6 {[%clk 0:03:00]} 3. d4 {[%clk 0:02:52]}  exd4 {[%clk 0:03:00]} 4. Nxd4 {[%clk 0:02:53]}  Bc5 {[%clk 0:03:00]} 5. Nb3 {[%clk 0:02:53]}  Bb6 {[%clk 0:03:01]} 6. Nc3 {[%clk 0:02:53]}  Nf6 {[%clk 0:03:00]} 7. Bg5 {[%clk 0:02:50]}  h6 {[%clk 0:03:01]} 8. Bh4 {[%clk 0:02:48]}  O-O {[%clk 0:03:01]} 9. Qe2 {[%clk 0:02:44]}  a5 {[%clk 0:03:02]} 10. O-O-O {[%clk 0:02:34]}  a4 {[%clk 0:03:01]} 11. Nd2 {[%clk 0:02:25]}  a3 {[%clk 0:03:02]} 12. e5 {[%clk 0:02:18]}  axb2+ {[%clk 0:02:54]} 13. Kb1 {[%clk 0:02:18]}  Re8 {[%clk 0:02:53]} 14. f4 {[%clk 0:02:10]}  d6 {[%clk 0:02:45]} 15. Bxf6 {[%clk 0:02:06]}  gxf6 {[%clk 0:02:44]} 16. Qh5 {[%clk 0:01:54]}  Kg7 {[%clk 0:02:29]} 17. Nde4 {[%clk 0:01:30]}  Bd4 {[%clk 0:02:17]} 18. Rd3 {[%clk 0:01:25]}  Rh8 {[%clk 0:01:41]} 19. Nxf6 {[%clk 0:01:00]}  dxe5 {[%clk 0:01:33]} 20. Rg3+ {[%clk 0:00:41]}  Kxf6 {[%clk 0:01:06]} 21. fxe5+ {[%clk 0:00:41]}  Ke7 {[%clk 0:00:36]} 22. Bc4 {[%clk 0:00:38]}  Be6 {[%clk 0:00:33]} 23. Bxe6 {[%clk 0:00:31]}  Kxe6 {[%clk 0:00:34]} 24. Rf1 {[%clk 0:00:27]}  Nxe5 {[%clk 0:00:31]} 25. Qf5+ {[%clk 0:00:17]}  Ke7 {[%clk 0:00:30]} 26. Re3 {[%clk 0:00:11]}  f6 {[%clk 0:00:26]} 27. Rg3 {[%clk 0:00:07]}  Kf7 {[%clk 0:00:14]} 28. Ne4 {[%clk 0:00:05]}  Ra6 {[%clk 0:00:13]} 29. Qh5+ {[%clk 0:00:04]}  Kf8 {[%clk 0:00:13]} 30. Qh4 {[%clk 0:00:01]}  Nf7 {[%clk 0:00:11]} 31. Qg4 {[%clk 0:00:01]}  Qd5 {[%clk 0:00:10]} 32. Qg7+ {[%clk 0:00:01]}  Ke7 {[%clk 0:00:11]} 33. Rgf3 {[%clk 0:00:01]}  Qxa2# {[%clk 0:00:11]} 0-1


[Site "https://www.chess.com"]

[Event "Titled Tuesday Blitz November 22 Late 2022"]
[White "Kleiman, Jake"]
[Black "Fiol, Fabrice"]
[WhiteFideId "2020041"]
[BlackFideId "611670"]
[WhiteElo "2597"]
[BlackElo "2442"]
[Result "1-0"]
[Round "10"]
[TimeControl "180+1"]
[Date "2022.11.23"]
[WhiteClock "0:00:44"]
[BlackClock "0:00:14"]

1. Nf3 {[%clk 0:02:58]}  d5 {[%clk 0:02:59]} 2. g3 {[%clk 0:02:59]}  c6 {[%clk 0:02:58]} 3. Bg2 {[%clk 0:02:59]}  Nf6 {[%clk 0:02:57]} 4. O-O {[%clk 0:02:59]}  Bf5 {[%clk 0:02:57]} 5. d3 {[%clk 0:02:59]}  h6 {[%clk 0:02:57]} 6. Nbd2 {[%clk 0:02:59]}  Bh7 {[%clk 0:02:57]} 7. Qe1 {[%clk 0:03:00]}  e6 {[%clk 0:02:57]} 8. e4 {[%clk 0:03:01]}  Be7 {[%clk 0:02:56]} 9. Qe2 {[%clk 0:03:00]}  a5 {[%clk 0:02:55]} 10. a4 {[%clk 0:03:00]}  Na6 {[%clk 0:02:54]} 11. Ne5 {[%clk 0:02:58]}  Nd7 {[%clk 0:02:51]} 12. Ndf3 {[%clk 0:02:43]}  Nxe5 {[%clk 0:02:44]} 13. Nxe5 {[%clk 0:02:41]}  O-O {[%clk 0:02:45]} 14. Bd2 {[%clk 0:02:33]}  Bf6 {[%clk 0:02:38]} 15. f4 {[%clk 0:02:21]}  dxe4 {[%clk 0:02:31]} 16. Bxe4 {[%clk 0:02:13]}  Qd4+ {[%clk 0:02:27]} 17. Be3 {[%clk 0:02:09]}  Qxb2 {[%clk 0:02:19]} 18. Bxh7+ {[%clk 0:02:05]}  Kxh7 {[%clk 0:02:18]} 19. Rab1 {[%clk 0:01:58]}  Qa3 {[%clk 0:02:05]} 20. Nd7 {[%clk 0:01:46]}  Rfd8 {[%clk 0:01:58]} 21. Nxf6+ {[%clk 0:01:45]}  gxf6 {[%clk 0:01:59]} 22. Rxb7 {[%clk 0:01:45]}  Qf8 {[%clk 0:01:42]} 23. Qh5 {[%clk 0:01:37]}  Kg8 {[%clk 0:01:24]} 24. f5 {[%clk 0:01:35]}  Rab8 {[%clk 0:01:19]} 25. Bxh6 {[%clk 0:01:23]}  Qc5+ {[%clk 0:01:17]} 26. Kh1 {[%clk 0:01:22]}  Qd5+ {[%clk 0:01:12]} 27. Rf3 {[%clk 0:01:14]}  exf5 {[%clk 0:01:08]} 28. Rxb8 {[%clk 0:01:03]}  Rxb8 {[%clk 0:01:05]} 29. c4 {[%clk 0:01:03]}  Rb1+ {[%clk 0:00:50]} 30. Kg2 {[%clk 0:01:02]}  Qd4 {[%clk 0:00:41]} 31. Qxf5 {[%clk 0:00:59]}  Nc5 {[%clk 0:00:32]} 32. Rf4 {[%clk 0:00:48]}  Rb2+ {[%clk 0:00:18]} 33. Kh3 {[%clk 0:00:47]}  Qg1 {[%clk 0:00:14]} 34. Qg4+ {[%clk 0:00:44]} 1-0


[Site "https://www.chess.com"]

[Event "Titled Tuesday Blitz November 22 Late 2022"]
[White "Klenburg, Michael"]
[Black "Guzman, Christopher"]
[WhiteFideId "14102072"]
[BlackFideId "6405096"]
[WhiteElo "2405"]
[BlackElo "2272"]
[Result "1-0"]
[Round "10"]
[TimeControl "180+1"]
[Date "2022.11.23"]
[WhiteClock "0:00:15"]
[BlackClock "0:00:38"]

1. e4 {[%clk 0:02:59]}  c6 {[%clk 0:02:59]} 2. d3 {[%clk 0:02:59]}  d5 {[%clk 0:03:00]} 3. Nd2 {[%clk 0:02:59]}  g6 {[%clk 0:02:57]} 4. Ngf3 {[%clk 0:02:59]}  Bg7 {[%clk 0:02:58]} 5. g3 {[%clk 0:02:59]}  Bg4 {[%clk 0:02:58]} 6. h3 {[%clk 0:02:59]}  Bxf3 {[%clk 0:02:58]} 7. Qxf3 {[%clk 0:02:59]}  Nf6 {[%clk 0:02:58]} 8. Qe2 {[%clk 0:02:58]}  O-O {[%clk 0:02:58]} 9. Bg2 {[%clk 0:02:58]}  dxe4 {[%clk 0:02:58]} 10. dxe4 {[%clk 0:02:58]}  e5 {[%clk 0:02:57]} 11. O-O {[%clk 0:02:57]}  Nbd7 {[%clk 0:02:55]} 12. b3 {[%clk 0:02:57]}  Qc7 {[%clk 0:02:55]} 13. Bb2 {[%clk 0:02:56]}  Rfd8 {[%clk 0:02:55]} 14. Rad1 {[%clk 0:02:52]}  b5 {[%clk 0:02:51]} 15. Nf3 {[%clk 0:02:50]}  h6 {[%clk 0:02:50]} 16. Rd2 {[%clk 0:02:46]}  Qa5 {[%clk 0:02:36]} 17. a3 {[%clk 0:02:43]}  Re8 {[%clk 0:02:34]} 18. Rfd1 {[%clk 0:02:40]}  Qc7 {[%clk 0:02:34]} 19. Qe3 {[%clk 0:02:28]}  Bf8 {[%clk 0:02:30]} 20. Nh2 {[%clk 0:02:06]}  Rad8 {[%clk 0:02:29]} 21. Ng4 {[%clk 0:02:02]}  Nxg4 {[%clk 0:02:27]} 22. hxg4 {[%clk 0:02:02]}  Bg7 {[%clk 0:02:11]} 23. g5 {[%clk 0:01:57]}  hxg5 {[%clk 0:02:09]} 24. Qxg5 {[%clk 0:01:57]}  Bf6 {[%clk 0:02:09]} 25. Qe3 {[%clk 0:01:56]}  Kg7 {[%clk 0:02:03]} 26. Bh3 {[%clk 0:01:43]}  Nb6 {[%clk 0:01:59]} 27. Qc5 {[%clk 0:01:34]}  Rxd2 {[%clk 0:01:56]} 28. Rxd2 {[%clk 0:01:31]}  Kg8 {[%clk 0:01:43]} 29. Bg4 {[%clk 0:01:25]}  Bg7 {[%clk 0:01:39]} 30. Rd6 {[%clk 0:01:06]}  Qe7 {[%clk 0:01:14]} 31. Rxc6 {[%clk 0:00:54]}  Qg5 {[%clk 0:01:13]} 32. Bf3 {[%clk 0:00:45]}  Qd2 {[%clk 0:01:03]} 33. Qc3 {[%clk 0:00:38]}  Qd7 {[%clk 0:00:57]} 34. Rc7 {[%clk 0:00:36]}  Qe6 {[%clk 0:00:57]} 35. Rxa7 {[%clk 0:00:33]}  Rc8 {[%clk 0:00:56]} 36. Rc7 {[%clk 0:00:33]}  Ra8 {[%clk 0:00:56]} 37. Qc6 {[%clk 0:00:26]}  Qxc6 {[%clk 0:00:55]} 38. Rxc6 {[%clk 0:00:26]}  Nd7 {[%clk 0:00:55]} 39. Kg2 {[%clk 0:00:24]}  Bf8 {[%clk 0:00:54]} 40. Rc7 {[%clk 0:00:24]}  Nb6 {[%clk 0:00:53]} 41. Bxe5 {[%clk 0:00:24]}  Bxa3 {[%clk 0:00:51]} 42. Bd4 {[%clk 0:00:23]}  Nc8 {[%clk 0:00:50]} 43. e5 {[%clk 0:00:20]}  Rb8 {[%clk 0:00:50]} 44. Bd5 {[%clk 0:00:20]}  Ne7 {[%clk 0:00:50]} 45. Be4 {[%clk 0:00:19]}  Kf8 {[%clk 0:00:47]} 46. f4 {[%clk 0:00:19]}  Ke8 {[%clk 0:00:47]} 47. Kf3 {[%clk 0:00:19]}  Kd8 {[%clk 0:00:46]} 48. Ra7 {[%clk 0:00:19]}  Bb4 {[%clk 0:00:45]} 49. g4 {[%clk 0:00:19]}  Rc8 {[%clk 0:00:44]} 50. f5 {[%clk 0:00:18]}  gxf5 {[%clk 0:00:43]} 51. gxf5 {[%clk 0:00:18]}  Nc6 {[%clk 0:00:43]} 52. Bxc6 {[%clk 0:00:17]}  Rxc6 {[%clk 0:00:43]} 53. Rxf7 {[%clk 0:00:17]}  Rxc2 {[%clk 0:00:43]} 54. Ke4 {[%clk 0:00:17]}  Ke8 {[%clk 0:00:41]} 55. e6 {[%clk 0:00:17]}  Be7 {[%clk 0:00:41]} 56. Rh7 {[%clk 0:00:17]}  Re2+ {[%clk 0:00:40]} 57. Kd5 {[%clk 0:00:17]}  Bf8 {[%clk 0:00:38]} 58. Rb7 {[%clk 0:00:16]}  Kd8 {[%clk 0:00:38]} 59. Rb8+ {[%clk 0:00:15]}  Ke7 {[%clk 0:00:38]} 60. Bc5+ {[%clk 0:00:15]} 1-0


[Site "https://www.chess.com"]

[Event "Titled Tuesday Blitz November 22 Late 2022"]
[White "Kollars, Dmitrij"]
[Black "Rustemov, Alexander"]
[WhiteFideId "12909572"]
[BlackFideId "4119002"]
[WhiteElo "2584"]
[BlackElo "2888"]
[Result "1-0"]
[Round "10"]
[TimeControl "180+1"]
[Date "2022.11.22"]
[WhiteClock "0:00:48"]
[BlackClock "0:01:27"]

1. e4 {[%clk 0:03:00]}  e6 {[%clk 0:03:00]} 2. d4 {[%clk 0:03:00]}  d5 {[%clk 0:03:00]} 3. Nc3 {[%clk 0:03:01]}  dxe4 {[%clk 0:03:01]} 4. Nxe4 {[%clk 0:03:02]}  Bd7 {[%clk 0:03:02]} 5. Nf3 {[%clk 0:02:58]}  Bc6 {[%clk 0:03:02]} 6. Bd3 {[%clk 0:02:52]}  Nd7 {[%clk 0:03:02]} 7. O-O {[%clk 0:02:50]}  Ngf6 {[%clk 0:03:03]} 8. Ned2 {[%clk 0:02:50]}  Be7 {[%clk 0:03:03]} 9. Re1 {[%clk 0:02:47]}  O-O {[%clk 0:03:03]} 10. Nc4 {[%clk 0:02:46]}  Bd5 {[%clk 0:03:02]} 11. Ne3 {[%clk 0:02:42]}  Bc6 {[%clk 0:03:01]} 12. Nc4 {[%clk 0:02:38]}  Bd5 {[%clk 0:03:01]} 13. Ne3 {[%clk 0:02:33]}  Bc6 {[%clk 0:03:01]} 14. b3 {[%clk 0:02:32]}  b6 {[%clk 0:02:59]} 15. Bb2 {[%clk 0:02:31]}  Bb7 {[%clk 0:03:00]} 16. c4 {[%clk 0:02:31]}  Re8 {[%clk 0:02:57]} 17. Qe2 {[%clk 0:02:23]}  c5 {[%clk 0:02:57]} 18. Rad1 {[%clk 0:02:23]}  Qc7 {[%clk 0:02:57]} 19. Bb1 {[%clk 0:02:17]}  Rad8 {[%clk 0:02:56]} 20. h3 {[%clk 0:02:16]}  h6 {[%clk 0:02:55]} 21. d5 {[%clk 0:01:57]}  exd5 {[%clk 0:02:52]} 22. cxd5 {[%clk 0:01:58]}  Bd6 {[%clk 0:02:44]} 23. Qc2 {[%clk 0:01:52]}  Ne5 {[%clk 0:02:34]} 24. Nh4 {[%clk 0:01:50]}  b5 {[%clk 0:02:21]} 25. Nhf5 {[%clk 0:01:45]}  Bf8 {[%clk 0:02:17]} 26. f4 {[%clk 0:01:10]}  Ned7 {[%clk 0:02:14]} 27. d6 {[%clk 0:01:02]}  Qc6 {[%clk 0:02:14]} 28. Ng4 {[%clk 0:01:00]}  Re6 {[%clk 0:01:27]} 29. Nxf6+ {[%clk 0:00:50]}  Nxf6 {[%clk 0:01:27]} 30. Bxf6 {[%clk 0:00:48]} 1-0


[Site "https://www.chess.com"]